Workbook

Sheet InternerZinssatz
B2: Interner Zinssatz (mit grafischer Interpolation)
B4: In den Arbeitsmappen wird der Interne Zinssatz einer Investition mit verschiedenen Verfahren ermittel.
B5: In jeder Arbeitsmappe wird ebenso der rechnerisch korrekte interne Zinssatz berechnet.
D7: Der interne Zinssatz wird grafisch durch die Festlegung eines Ausgangszinssatzes und
D8: durch die Differenz zu höheren Vergleichszinssätzen ermittel.
D9: Für jeden Zinssatz werden Kapitalwerte eermittelt und grafisch dargestellt.
D11: Der interne Zinssatz wird rechnerisch korrekt mit der Zielwertsuche bestimmt.
D12: Die Vergleichszinssätze zur grafischen Darstellung liegen mit gleichen
D13: Zinsdifferenzen höher und niedriger als der interne Zinssatz.
D15: Der interne Zinssatz wird mit Versuchszinssätzen nach der Regula-Falsi-Methode
D16: ("Regel des Falschen"; lineare Interpolation) bestimmt und mit dem korrekten
D17: internen Zinssatz verglichen. Die Differenz der Vergleichszinssätze beträgt jeweils 1%

Sheet Vergleichszinssätze
B2: Interner Zinssatz (mit grafischer Interpolation) | I2: Orientierung an Vergleichszinssätzen (Nach Angabe eines Ausgangszinssatzes und der Differenz zum nächsten Zinssatzs werden die Vergleichszinssätze und die entsprechenden Kapitalwerte ermittelt.)
B4: n | C4: Einnahmen | D4: Ausgaben | E4: Überschuss | G4: niedriger Vergleichszinssatz: | J4: 0.055 | K4: Eingabefelder (Einnahmen, Ausgabe, Vergleichszinssätze)
B5: 0 | C5: 0 | D5: 1200000 | E5: =C5-D5 -> -1200000 | G5: Differenz zwischen den Vergleichszinssätzen: | J5: 0.001 | K5: Klicken zur Berechnung des internen Zinssatzes
B6: 1 | C6: 380000 | D6: 120000 | E6: =C6-D6 -> 260000 | G6: Interner Zinssatz: | I6: =($E$5*J7^-$B$5)+($E$6*J7^-$B$6)+($E$7*J7^-$B$7)+($E$8*J7^-$B$8)+($E$9*J7^-$B$9)+($E$10*J7^-$B$10)+($E$11*J7^-$B$11)+($E$12*J7^-$B$12)+($E$13*J7^-$B$13)+($E$14*J7^-$B$14)+($E$15*J7^-$B$15) -> 1.490843715e-07 | J6: 0.05946911013
B7: 2 | C7: 420000 | D7: 110000 | E7: 310000 | J7: =1+J6 -> 1.05946911 | K7: =INT(J6*100) -> 5
B8: 3 | C8: 490000 | D8: 100000 | E8: 390000
B9: 4 | C9: 390000 | D9: 90000 | E9: 300000
B10: 5 | C10: 250000 | D10: 100000 | E10: 150000
B11: 6 | E11: 0
B12: 7 | E12: 0
B13: 8 | E13: 0
B14: 9 | E14: 0
B15: 10 | E15: 0
E16: =SUM(E5:E15) -> 210000
B18: Vergleichszinssätze | D18: Kapitalwert
B19: Zinssatz | C19: q
B20: =J4 -> 0.055 | C20: =1+B20 -> 1.055 | D20: =($E$5*C20^-$B$5)+($E$6*C20^-$B$6)+($E$7*C20^-$B$7)+($E$8*C20^-$B$8)+($E$9*C20^-$B$9)+($E$10*C20^-$B$10)+($E$11*C20^-$B$11)+($E$12*C20^-$B$12)+($E$13*C20^-$B$13)+($E$14*C20^-$B$14)+($E$15*C20^-$B$15) -> 14030.2516
B21: =B20+$J$5 -> 0.056 | C21: =1+B21 -> 1.056 | D21: =($E$5*C21^-$B$5)+($E$6*C21^-$B$6)+($E$7*C21^-$B$7)+($E$8*C21^-$B$8)+($E$9*C21^-$B$9)+($E$10*C21^-$B$10)+($E$11*C21^-$B$11)+($E$12*C21^-$B$12)+($E$13*C21^-$B$13)+($E$14*C21^-$B$14)+($E$15*C21^-$B$15) -> 10868.58781
B22: 0.057 | C22: 1.057 | D22: 7719.825123
B23: 0.058 | C23: 1.058 | D23: 4583.895001
B24: 0.059 | C24: 1.059 | D24: =($E$5*C24^-$B$5)+($E$6*C24^-$B$6)+($E$7*C24^-$B$7)+($E$8*C24^-$B$8)+($E$9*C24^-$B$9)+($E$10*C24^-$B$10)+($E$11*C24^-$B$11)+($E$12*C24^-$B$12)+($E$13*C24^-$B$13)+($E$14*C24^-$B$14)+($E$15*C24^-$B$15) -> 1460.729361
B25: 0.06 | C25: 1.06 | D25: -1649.739444
B26: 0.061 | C26: 1.061 | D26: -4747.578628
B27: 0.062 | C27: 1.062 | D27: -7832.854974
B28: 0.063 | C28: 1.063 | D28: -10905.63483
B29: 0.064 | C29: 1.064 | D29: -13965.98414
B30: 0.065 | C30: 1.065 | D30: -17013.96839

Sheet Zielwertsuche
B2: Interner Zinssatz (mit grafischer Interpolation) | I2: Orientierung am Internen Zinssatz (Nach Berechnung des Internen Zinssatztes und Angabe der Zinsdifferenzen werden die Vergleichszinssätze und die entsprechenden Kapitalwerte ermittelt.)
B4: n | C4: Einnahmen | D4: Ausgaben | E4: Überschuss | G4: Eingabefelder (Einnahmen, Ausgabe, Zinsdifferenzen)
B5: 0 | C5: 0 | D5: 1200000 | E5: =C5-D5 -> -1200000 | G5: Differenz zwischen denVergleichszinssätzen: | J5: 0.01 | K5: Klicken zur Berechnung des internen Zinssatzes
B6: 1 | C6: 380000 | D6: 120000 | E6: =C6-D6 -> 260000 | G6: Interner Zinssatz: | I6: =($E$5*J7^-$B$5)+($E$6*J7^-$B$6)+($E$7*J7^-$B$7)+($E$8*J7^-$B$8)+($E$9*J7^-$B$9)+($E$10*J7^-$B$10)+($E$11*J7^-$B$11)+($E$12*J7^-$B$12)+($E$13*J7^-$B$13)+($E$14*J7^-$B$14)+($E$15*J7^-$B$15) -> -6.218033377e-07 | J6: 0.05946911013
B7: 2 | C7: 420000 | D7: 110000 | E7: 310000 | J7: =1+J6 -> 1.05946911 | K7: =INT(J6*100) -> 5
B8: 3 | C8: 490000 | D8: 100000 | E8: 390000
B9: 4 | C9: 390000 | D9: 90000 | E9: 300000
B10: 5 | C10: 250000 | D10: 100000 | E10: 150000
B11: 6 | E11: 0
B12: 7 | E12: 0
B13: 8 | E13: 0
B14: 9 | E14: 0
B15: 10 | E15: 0
E16: =SUM(E5:E15) -> 210000
B18: Vergleichszinssätze | D18: Kapitalwert
B19: Zinssatz | C19: q
B20: =K7%-(J5*5) -> 0 | C20: =1+B20 -> 1 | D20: =($E$5*C20^-$B$5)+($E$6*C20^-$B$6)+($E$7*C20^-$B$7)+($E$8*C20^-$B$8)+($E$9*C20^-$B$9)+($E$10*C20^-$B$10)+($E$11*C20^-$B$11)+($E$12*C20^-$B$12)+($E$13*C20^-$B$13)+($E$14*C20^-$B$14)+($E$15*C20^-$B$15) -> 210000
B21: =B20+$J$5 -> 0.01 | C21: =1+B21 -> 1.01 | D21: =($E$5*C21^-$B$5)+($E$6*C21^-$B$6)+($E$7*C21^-$B$7)+($E$8*C21^-$B$8)+($E$9*C21^-$B$9)+($E$10*C21^-$B$10)+($E$11*C21^-$B$11)+($E$12*C21^-$B$12)+($E$13*C21^-$B$13)+($E$14*C21^-$B$14)+($E$15*C21^-$B$15) -> 170861.6321
B22: 0.02 | C22: 1.02 | D22: 133383.2427
B23: 0.03 | C23: 1.03 | D23: 97474.59548
B24: 0.04 | C24: 1.04 | D24: =($E$5*C24^-$B$5)+($E$6*C24^-$B$6)+($E$7*C24^-$B$7)+($E$8*C24^-$B$8)+($E$9*C24^-$B$9)+($E$10*C24^-$B$10)+($E$11*C24^-$B$11)+($E$12*C24^-$B$12)+($E$13*C24^-$B$13)+($E$14*C24^-$B$14)+($E$15*C24^-$B$15) -> 63051.32924
B25: 0.05 | C25: 1.05 | D25: 30034.51678
B26: =B25+$J$5 -> 0.06 | C26: 1.06 | D26: -1649.739444
B27: =B26+$J$5 -> 0.07 | C27: 1.07 | D27: -32070.67751
B28: =B27+$J$5 -> 0.08 | C28: 1.08 | D28: -61293.21557
B29: =B28+$J$5 -> 0.09 | C29: 1.09 | D29: -89378.26351
B30: =B29+$J$5 -> 0.1 | C30: 1.1 | D30: -116383.0091

Sheet RegulaFalsi
B2: Interner Zinssatz (mit grafischer Interpolation) | I2: Nach Regula-Falsi-Formel (Der Interne Zinssatz wird mit der Näherungslösung verglichen. Die Diffferenz zwischen den Vergleichszinssätze ist jeweils 1%.)
B4: n | C4: Einnahmen | D4: Ausgaben | E4: Überschuss | G4: Eingabefelder (Einnahmen, Ausgabe, Versuchszinssätze) | K4: Klicken zur Berechnung des internen Zinssatzes
B5: 0 | C5: 0 | D5: 1200000 | E5: =C5-D5 -> -1200000 | G5: Versuchszinssatz 1: | I5: 0.02 | J5: p1
B6: 1 | C6: 380000 | D6: 120000 | E6: =C6-D6 -> 260000 | G6: Versuchszinssatz 2: | I6: 0.08 | J6: p2 | K6: Interner Zinssatz nach Regula-Falsi-Formel | M6: =(M8-(K8*((N8-M8)/(L8-K8))))/100 -> 0.06110920567 | N6: Abweichung
B7: 2 | C7: 420000 | D7: 110000 | E7: 310000 | G7: Interner Zinssatz: | I7: =($E$5*J8^-$B$5)+($E$6*J8^-$B$6)+($E$7*J8^-$B$7)+($E$8*J8^-$B$8)+($E$9*J8^-$B$9)+($E$10*J8^-$B$10)+($E$11*J8^-$B$11)+($E$12*J8^-$B$12)+($E$13*J8^-$B$13)+($E$14*J8^-$B$14)+($E$15*J8^-$B$15) -> -6.218033377e-07 | J7: 0.05946911013 | N7: =M6-J7 -> 0.001640095541
B8: 3 | C8: 490000 | D8: 100000 | E8: 390000 | I8: =I6+0.01% -> 0.0801 | J8: =1+J7 -> 1.05946911 | K8: =VLOOKUP(I5,B20:D30,3,TRUE) -> 133383.2427 | L8: =VLOOKUP(I8,B20:D30,3,TRUE) -> -61293.21557 | M8: =I5*100 -> 2 | N8: =I6*100 -> 8
B9: 4 | C9: 390000 | D9: 90000 | E9: 300000 | P9: Wählen Sie Versuchszinssatz 1. (Dezimalzahlen sind möglich). Wählen Sie dann Versuchszinssatz 2 aus der Liste der Vergleichszinssätze. (Tabelle links unten; nur mit diesen Zinssätzen werden die Kapitalwerte korrekt berechnet.)
B10: 5 | C10: 250000 | D10: 100000 | E10: 150000
B11: 6 | E11: 0
B12: 7 | E12: 0
B13: 8 | E13: 0
B14: 9 | E14: 0 | Q14: Regula-Falsi-Formel
B15: 10 | E15: 0
E16: =SUM(E5:E15) -> 210000
B18: Vergleichszinssätze | D18: Kapitalwert
B19: Zinssatz | C19: q | Q19: i = interner Zinssatz
B20: =I5-1% -> 0.01 | C20: =1+B20 -> 1.01 | D20: =($E$5*C20^-$B$5)+($E$6*C20^-$B$6)+($E$7*C20^-$B$7)+($E$8*C20^-$B$8)+($E$9*C20^-$B$9)+($E$10*C20^-$B$10)+($E$11*C20^-$B$11)+($E$12*C20^-$B$12)+($E$13*C20^-$B$13)+($E$14*C20^-$B$14)+($E$15*C20^-$B$15) -> 170861.6321 | Q20: p1 = 1. Versuchszinssatz
B21: =I5 -> 0.02 | C21: =1+B21 -> 1.02 | D21: =($E$5*C21^-$B$5)+($E$6*C21^-$B$6)+($E$7*C21^-$B$7)+($E$8*C21^-$B$8)+($E$9*C21^-$B$9)+($E$10*C21^-$B$10)+($E$11*C21^-$B$11)+($E$12*C21^-$B$12)+($E$13*C21^-$B$13)+($E$14*C21^-$B$14)+($E$15*C21^-$B$15) -> 133383.2427 | Q21: p2 = 2. Versuchszinssatz
B22: =I5+1% -> 0.03 | C22: 1.03 | D22: 97474.59548 | Q22: C1 = 1. Kapitalwert
B23: =I5+2% -> 0.04 | C23: 1.04 | D23: 63051.32924 | Q23: C2 = 2. Kapitalwert
B24: =I5+3% -> 0.05 | C24: 1.05 | D24: =($E$5*C24^-$B$5)+($E$6*C24^-$B$6)+($E$7*C24^-$B$7)+($E$8*C24^-$B$8)+($E$9*C24^-$B$9)+($E$10*C24^-$B$10)+($E$11*C24^-$B$11)+($E$12*C24^-$B$12)+($E$13*C24^-$B$13)+($E$14*C24^-$B$14)+($E$15*C24^-$B$15) -> 30034.51678
B25: =I5+4% -> 0.06 | C25: 1.06 | D25: -1649.739444
B26: =I5+5% -> 0.07 | C26: 1.07 | D26: -32070.67751
B27: =I5+6% -> 0.08 | C27: 1.08 | D27: -61293.21557
B28: =I5+7% -> 0.09 | C28: 1.09 | D28: -89378.26351
B29: =I5+8% -> 0.1 | C29: 1.1 | D29: -116383.0091
B30: =I5+9% -> 0.11 | C30: 1.11 | D30: -142361.1813
